[Event "Late-Titled-Tuesday-Blitz-January-30-2024"]
[Site "Chess.com"]
[Date "2024.01.30"]
[Round "5"]
[White "only_strong_moves"]
[Black "picturesquecheck"]
[Result "0-1"]
[WhiteElo "2534"]
[BlackElo "2373"]
[TimeControl "180+1"]
[EndTime "14:57:48 PST"]
[Termination "picturesquecheck won by resignation"]

1. d4 {[%clk 0:03:00.7]} 1... d6 {[%clk 0:02:59.4]} 2. e4 {[%clk 0:02:59.8]}
2... g6 {[%clk 0:02:59.8]} 3. Nc3 {[%clk 0:03:00.2]} 3... Bg7 {[%clk 0:03:00.4]}
4. f4 {[%clk 0:03:00.8]} 4... a6 {[%clk 0:03:01]} 5. Nf3 {[%clk 0:03:00.7]} 5...
Nf6 {[%clk 0:03:00.7]} 6. Be3 {[%clk 0:02:58.8]} 6... O-O {[%clk 0:03:00.5]} 7.
e5 {[%clk 0:02:58.2]} 7... Ng4 {[%clk 0:02:58.8]} 8. Bg1 {[%clk 0:02:58.2]} 8...
dxe5 {[%clk 0:02:50.2]} 9. dxe5 {[%clk 0:02:59.1]} 9... h5 {[%clk 0:02:43.2]}
10. Bd3 {[%clk 0:02:40.2]} 10... Nh6 {[%clk 0:02:38.1]} 11. Qe2 {[%clk
0:02:35.2]} 11... c6 {[%clk 0:02:34.3]} 12. O-O-O {[%clk 0:02:35.1]} 12... Qa5
{[%clk 0:02:34.3]} 13. Kb1 {[%clk 0:02:30.2]} 13... Be6 {[%clk 0:02:32.9]} 14.
a3 {[%clk 0:02:29]} 14... b5 {[%clk 0:02:28.6]} 15. Bc5 {[%clk 0:02:19.2]} 15...
Re8 {[%clk 0:02:23.9]} 16. Ng5 {[%clk 0:02:10.3]} 16... Bg4 {[%clk 0:02:20.3]}
17. Qe4 {[%clk 0:02:04.1]} 17... Nd7 {[%clk 0:02:06]} 18. Bb4 {[%clk 0:01:46.8]}
18... Qc7 {[%clk 0:01:53.1]} 19. e6 {[%clk 0:01:46.8]} 19... f5 {[%clk
0:01:33.5]} 20. Qe3 {[%clk 0:01:22.4]} 20... Nb6 {[%clk 0:01:24.4]} 21. Ba5
{[%clk 0:01:17.2]} 21... Rab8 {[%clk 0:01:20.9]} 22. Rde1 {[%clk 0:01:12.2]}
22... Qb7 {[%clk 0:00:56.8]} 23. Bxb6 {[%clk 0:01:04.3]} 23... Qxb6 {[%clk
0:00:55.7]} 24. Qxb6 {[%clk 0:01:05.2]} 24... Rxb6 {[%clk 0:00:56.3]} 25. h3
{[%clk 0:01:05.9]} 25... b4 {[%clk 0:00:53.1]} 26. Na4 {[%clk 0:01:05.2]} 26...
Rbb8 {[%clk 0:00:51.7]} 27. axb4 {[%clk 0:01:05.2]} 27... Rxb4 {[%clk
0:00:48.2]} 28. b3 {[%clk 0:01:05.7]} 28... Reb8 {[%clk 0:00:40.5]} 29. Kc1
{[%clk 0:01:05.2]} 29... Rxf4 {[%clk 0:00:25.3]} 30. hxg4 {[%clk 0:01:05.2]}
30... Nxg4 {[%clk 0:00:24.4]} 31. Rhf1 {[%clk 0:00:54.9]} 31... Rxf1 {[%clk
0:00:22.9]} 32. Bxf1 {[%clk 0:00:52.6]} 32... Bh6 {[%clk 0:00:21.5]} 33. Kb1
{[%clk 0:00:48]} 33... Bxg5 {[%clk 0:00:21]} 34. Bxa6 {[%clk 0:00:47.9]} 34...
Bh4 {[%clk 0:00:15]} 35. Rd1 {[%clk 0:00:46.8]} 35... Bf6 {[%clk 0:00:14.8]} 36.
Nc5 {[%clk 0:00:46.4]} 36... h4 {[%clk 0:00:14.3]} 37. Bb7 {[%clk 0:00:43.3]}
37... Ne5 {[%clk 0:00:13]} 38. Nd7 {[%clk 0:00:42.8]} 38... Rxb7 {[%clk
0:00:10.3]} 39. Nxf6+ {[%clk 0:00:36.4]} 39... exf6 {[%clk 0:00:11.2]} 40. Rd4
{[%clk 0:00:36]} 40... Kf8 {[%clk 0:00:10.6]} 41. Rxh4 {[%clk 0:00:35.6]} 41...
Re7 {[%clk 0:00:08.8]} 42. Rh8+ {[%clk 0:00:33.8]} 42... Kg7 {[%clk 0:00:09]}
43. Rc8 {[%clk 0:00:33.6]} 43... Rxe6 {[%clk 0:00:09.4]} 44. c4 {[%clk
0:00:32.8]} 44... Kh6 {[%clk 0:00:09.5]} 45. c5 {[%clk 0:00:33.1]} 45... f4
{[%clk 0:00:09.9]} 46. b4 {[%clk 0:00:33.1]} 46... Kg5 {[%clk 0:00:10.5]} 47.
Kc2 {[%clk 0:00:30.3]} 47... Kf5 {[%clk 0:00:09.6]} 48. Kc3 {[%clk 0:00:30.2]}
48... g5 {[%clk 0:00:10.1]} 49. Kd4 {[%clk 0:00:30.1]} 49... g4 {[%clk
0:00:10.3]} 50. Rg8 {[%clk 0:00:29.1]} 50... f3 {[%clk 0:00:10.3]} 51. gxf3
{[%clk 0:00:29]} 51... Nxf3+ {[%clk 0:00:11.2]} 52. Kc4 {[%clk 0:00:29.5]} 52...
Ne5+ {[%clk 0:00:11.3]} 53. Kd4 {[%clk 0:00:29.1]} 53... Kf4 {[%clk 0:00:11.8]}
54. b5 {[%clk 0:00:28.1]} 54... cxb5 {[%clk 0:00:11.6]} 55. Kd5 {[%clk 0:00:29]}
55... Re7 {[%clk 0:00:10.6]} 56. Kd6 {[%clk 0:00:29]} 56... Rd7+ {[%clk
0:00:07.8]} 57. Ke6 {[%clk 0:00:29]} 57... Rd2 {[%clk 0:00:06.7]} 58. Rf8 {[%clk
0:00:24.3]} 58... Ke4 {[%clk 0:00:01.1]} 59. Rxf6 {[%clk 0:00:25.2]} 59... Nf3
{[%clk 0:00:01.3]} 60. c6 {[%clk 0:00:24.3]} 60... Nd4+ {[%clk 0:00:02.2]} 61.
Ke7 {[%clk 0:00:24.6]} 61... Nxc6+ {[%clk 0:00:02.7]} 62. Rxc6 {[%clk
0:00:25.5]} 62... Kf3 {[%clk 0:00:03.2]} 63. Re6 {[%clk 0:00:26.4]} 63... Re2
{[%clk 0:00:03.8]} 64. Kf6 {[%clk 0:00:26.2]} 64... Rxe6+ {[%clk 0:00:03.5]} 65.
Kxe6 {[%clk 0:00:27.1]} 65... g3 {[%clk 0:00:04.4]} 66. Kf5 {[%clk 0:00:27.1]}
66... g2 {[%clk 0:00:05.3]} 67. Ke5 {[%clk 0:00:28]} 67... g1=Q {[%clk
0:00:05.8]} 68. Ke6 {[%clk 0:00:28.9]} 68... Qe3+ {[%clk 0:00:06.4]} 0-1

[Event "Late-Titled-Tuesday-Blitz-January-30-2024"]
[Site "Chess.com"]
[Date "2024.01.30"]
[Round "5"]
[White "ChristopherYoo"]
[Black "Witik"]
[Result "1-0"]
[WhiteElo "2932"]
[BlackElo "2655"]
[TimeControl "180+1"]
[EndTime "14:58:09 PST"]
[Termination "ChristopherYoo won on time"]

1. e4 {[%clk 0:02:45.5]} 1... c6 {[%clk 0:02:58.7]} 2. Nf3 {[%clk 0:02:45.7]}
2... d5 {[%clk 0:02:59.3]} 3. exd5 {[%clk 0:02:46.2]} 3... cxd5 {[%clk 0:02:59]}
4. Ne5 {[%clk 0:02:46.9]} 4... Nf6 {[%clk 0:02:58.6]} 5. d4 {[%clk 0:02:46.7]}
5... g6 {[%clk 0:02:58.1]} 6. Bb5+ {[%clk 0:02:46.4]} 6... Nbd7 {[%clk
0:02:58.2]} 7. O-O {[%clk 0:02:46.4]} 7... Bg7 {[%clk 0:02:58.4]} 8. Re1 {[%clk
0:02:37.2]} 8... O-O {[%clk 0:02:58.4]} 9. Nd2 {[%clk 0:02:36.8]} 9... Nxe5
{[%clk 0:02:49]} 10. dxe5 {[%clk 0:02:36.5]} 10... Ne4 {[%clk 0:02:49.6]} 11.
Nxe4 {[%clk 0:02:08.3]} 11... dxe4 {[%clk 0:02:49.7]} 12. Bg5 {[%clk 0:02:01.8]}
12... Bxe5 {[%clk 0:02:17.6]} 13. Qxd8 {[%clk 0:02:00.4]} 13... Rxd8 {[%clk
0:02:17.4]} 14. Bxe7 {[%clk 0:02:01]} 14... Rd2 {[%clk 0:01:48.1]} 15. Rxe4
{[%clk 0:01:51.3]} 15... Bxb2 {[%clk 0:01:43.9]} 16. Bb4 {[%clk 0:01:36.4]}
16... Bf5 {[%clk 0:01:36.6]} 17. Bxd2 {[%clk 0:01:28.2]} 17... Bxe4 {[%clk
0:01:16.7]} 18. Rb1 {[%clk 0:01:27.1]} 18... Rd8 {[%clk 0:01:16.7]} 19. Bg5
{[%clk 0:01:07.3]} 19... Rd5 {[%clk 0:00:33.9]} 20. Rxb2 {[%clk 0:00:56]} 20...
Rxg5 {[%clk 0:00:33.8]} 21. Bf1 {[%clk 0:00:53.1]} 21... Rc5 {[%clk 0:00:32.2]}
22. c4 {[%clk 0:00:52.6]} 22... Kf8 {[%clk 0:00:27.5]} 23. f3 {[%clk 0:00:51.8]}
23... Bc6 {[%clk 0:00:25.5]} 24. Kf2 {[%clk 0:00:52.2]} 24... Ke7 {[%clk
0:00:25.4]} 25. Ke3 {[%clk 0:00:52.6]} 25... Ra5 {[%clk 0:00:25.9]} 26. Kd4
{[%clk 0:00:52.7]} 26... Kd6 {[%clk 0:00:26.1]} 27. Bd3 {[%clk 0:00:49]} 27...
b6 {[%clk 0:00:16.6]} 28. Bc2 {[%clk 0:00:49.1]} 28... Rh5 {[%clk 0:00:14.6]}
29. h3 {[%clk 0:00:48.5]} 29... Re5 {[%clk 0:00:14.6]} 30. Bd3 {[%clk
0:00:38.2]} 30... Re1 {[%clk 0:00:14.7]} 31. Rd2 {[%clk 0:00:32.5]} 31... h6
{[%clk 0:00:14.4]} 32. Bc2 {[%clk 0:00:30.9]} 32... g5 {[%clk 0:00:14.1]} 33.
Bf5 {[%clk 0:00:30]} 33... Rg1 {[%clk 0:00:11.1]} 34. Bg4 {[%clk 0:00:21.2]}
34... Re1 {[%clk 0:00:10]} 35. Bh5 {[%clk 0:00:19.4]} 35... f5 {[%clk
0:00:09.4]} 36. Bf7 {[%clk 0:00:10]} 36... Re5 {[%clk 0:00:06.4]} 37. Bg6 {[%clk
0:00:03.4]} 37... f4 {[%clk 0:00:06.8]} 38. Bc2 {[%clk 0:00:02.2]} 38... Re1
{[%clk 0:00:06.5]} 39. Bb3 {[%clk 0:00:02.5]} 39... a5 {[%clk 0:00:06.3]} 40.
Bc2 {[%clk 0:00:02.8]} 40... Ra1 {[%clk 0:00:05.7]} 41. Bf5 {[%clk 0:00:03.2]}
41... Rg1 {[%clk 0:00:04.9]} 42. Re2 {[%clk 0:00:03.5]} 42... Rd1+ {[%clk
0:00:03.2]} 43. Kc3 {[%clk 0:00:04.1]} 43... Kc7 {[%clk 0:00:03.5]} 44. Re7+
{[%clk 0:00:03.9]} 44... Kd6 {[%clk 0:00:03.9]} 45. Re6+ {[%clk 0:00:04.3]}
45... Kc7 {[%clk 0:00:03.6]} 46. Rxh6 {[%clk 0:00:04.2]} 46... Rg1 {[%clk
0:00:03.5]} 47. Rh7+ {[%clk 0:00:03.8]} 47... Kd6 {[%clk 0:00:03.6]} 48. Rg7
{[%clk 0:00:02.1]} 48... Rxg2 {[%clk 0:00:03.3]} 49. h4 {[%clk 0:00:02.5]} 49...
Rg3 {[%clk 0:00:03]} 50. hxg5 {[%clk 0:00:02.6]} 50... Rxf3+ {[%clk 0:00:03.2]}
51. Kd4 {[%clk 0:00:03.2]} 51... Rf1 {[%clk 0:00:03]} 52. Rg6+ {[%clk 0:00:02]}
52... Kc7 {[%clk 0:00:03.5]} 53. Rg7+ {[%clk 0:00:02.2]} 53... Kd6 {[%clk
0:00:03.7]} 54. Bh3 {[%clk 0:00:02]} 54... Rd1+ {[%clk 0:00:03.9]} 55. Kc3
{[%clk 0:00:02.7]} 55... f3 {[%clk 0:00:04.5]} 56. Rg6+ {[%clk 0:00:03]} 56...
Kc5 {[%clk 0:00:04.7]} 57. Rf6 {[%clk 0:00:03.7]} 57... Rc1+ {[%clk 0:00:05.1]}
58. Kd2 {[%clk 0:00:04.2]} 58... Rxc4 {[%clk 0:00:05.7]} 59. g6 {[%clk
0:00:04.9]} 59... Rd4+ {[%clk 0:00:06]} 60. Ke3 {[%clk 0:00:04.8]} 60... Rd8
{[%clk 0:00:06.6]} 61. Be6 {[%clk 0:00:04.3]} 61... Kd6 {[%clk 0:00:06]} 62. g7
{[%clk 0:00:03.6]} 62... Ke7 {[%clk 0:00:06.4]} 63. Rh6 {[%clk 0:00:04]} 63...
Re8 {[%clk 0:00:04.2]} 64. g8=Q {[%clk 0:00:04.1]} 64... Rxg8 {[%clk 0:00:04.7]}
65. Bxg8 {[%clk 0:00:05]} 65... Kd7 {[%clk 0:00:04.8]} 66. Bh7 {[%clk
0:00:04.5]} 66... Kc7 {[%clk 0:00:04.4]} 67. Be4 {[%clk 0:00:04.9]} 1-0

[Event "Late-Titled-Tuesday-Blitz-January-30-2024"]
[Site "Chess.com"]
[Date "2024.01.30"]
[Round "5"]
[White "DeTimmerman"]
[Black "rhungaski"]
[Result "1-0"]
[WhiteElo "2673"]
[BlackElo "2504"]
[TimeControl "180+1"]
[EndTime "14:58:19 PST"]
[Termination "DeTimmerman won by resignation"]

1. e4 {[%clk 0:02:59.9]} 1... g6 {[%clk 0:02:59.1]} 2. d4 {[%clk 0:02:58.8]}
2... Bg7 {[%clk 0:02:59.3]} 3. Nc3 {[%clk 0:02:57.8]} 3... d6 {[%clk 0:02:59.2]}
4. Be3 {[%clk 0:02:50.2]} 4... a6 {[%clk 0:02:58.6]} 5. h4 {[%clk 0:02:46]} 5...
h6 {[%clk 0:02:57.7]} 6. Qd2 {[%clk 0:02:42]} 6... b5 {[%clk 0:02:54.3]} 7.
O-O-O {[%clk 0:02:38.4]} 7... Bb7 {[%clk 0:02:51.5]} 8. f3 {[%clk 0:02:35.6]}
8... Nd7 {[%clk 0:02:47.5]} 9. Nh3 {[%clk 0:02:30.1]} 9... c5 {[%clk 0:02:32.6]}
10. dxc5 {[%clk 0:02:06.2]} 10... Rc8 {[%clk 0:01:35]} 11. Bd4 {[%clk
0:01:51.6]} 11... e5 {[%clk 0:01:20.2]} 12. Be3 {[%clk 0:01:27]} 12... dxc5
{[%clk 0:01:20.3]} 13. h5 {[%clk 0:01:25.3]} 13... Ne7 {[%clk 0:01:12.3]} 14.
hxg6 {[%clk 0:01:24.2]} 14... fxg6 {[%clk 0:01:13.2]} 15. Nf2 {[%clk 0:01:19.6]}
15... h5 {[%clk 0:01:02.3]} 16. Bg5 {[%clk 0:01:15.2]} 16... Nf6 {[%clk
0:00:59.7]} 17. Qxd8+ {[%clk 0:00:52.8]} 17... Rxd8 {[%clk 0:01:00.6]} 18. Rxd8+
{[%clk 0:00:53.2]} 18... Kxd8 {[%clk 0:01:01]} 19. Nd3 {[%clk 0:00:54.1]} 19...
Nd7 {[%clk 0:00:58.7]} 20. Be2 {[%clk 0:00:51]} 20... Bh6 {[%clk 0:00:56.3]} 21.
Bxh6 {[%clk 0:00:49.3]} 21... Rxh6 {[%clk 0:00:57.2]} 22. Rd1 {[%clk 0:00:49.4]}
22... Kc7 {[%clk 0:00:56.6]} 23. Nb1 {[%clk 0:00:48.7]} 23... h4 {[%clk
0:00:54]} 24. Nf2 {[%clk 0:00:48.7]} 24... Nf6 {[%clk 0:00:53.2]} 25. Nd2 {[%clk
0:00:45.3]} 25... g5 {[%clk 0:00:49.9]} 26. Nf1 {[%clk 0:00:45.6]} 26... Bc8
{[%clk 0:00:49.8]} 27. Ne3 {[%clk 0:00:45.4]} 27... Be6 {[%clk 0:00:50.3]} 28.
Rh1 {[%clk 0:00:42.7]} 28... Rg6 {[%clk 0:00:46.9]} 29. a4 {[%clk 0:00:36.4]}
29... c4 {[%clk 0:00:44.4]} 30. axb5 {[%clk 0:00:36.1]} 30... axb5 {[%clk
0:00:45.3]} 31. b3 {[%clk 0:00:30.7]} 31... cxb3 {[%clk 0:00:44.7]} 32. cxb3
{[%clk 0:00:31.6]} 32... Kb6 {[%clk 0:00:28.7]} 33. Kb2 {[%clk 0:00:29]} 33...
Nc6 {[%clk 0:00:26.9]} 34. Nc2 {[%clk 0:00:22.7]} 34... Rg8 {[%clk 0:00:24.7]}
35. Nd3 {[%clk 0:00:22.2]} 35... Nh5 {[%clk 0:00:21.8]} 36. Ne3 {[%clk
0:00:18.2]} 36... Nf4 {[%clk 0:00:21.2]} 37. Bf1 {[%clk 0:00:18.7]} 37... Rd8
{[%clk 0:00:19.5]} 38. Kc3 {[%clk 0:00:17.6]} 38... b4+ {[%clk 0:00:18.6]} 39.
Nxb4 {[%clk 0:00:16.5]} 39... Nxb4 {[%clk 0:00:18.6]} 40. Kxb4 {[%clk
0:00:17.4]} 40... Rd2 {[%clk 0:00:16.1]} 41. Bc4 {[%clk 0:00:15.7]} 41... Bc8
{[%clk 0:00:09.5]} 42. Kc3 {[%clk 0:00:15.4]} 42... Rf2 {[%clk 0:00:08.7]} 43.
Rg1 {[%clk 0:00:15.6]} 43... Ba6 {[%clk 0:00:07.6]} 44. Bxa6 {[%clk 0:00:15.4]}
44... Kxa6 {[%clk 0:00:08.5]} 45. Kc4 {[%clk 0:00:12.8]} 45... Kb7 {[%clk
0:00:07.8]} 46. Kc5 {[%clk 0:00:12.7]} 46... Rb2 {[%clk 0:00:07.7]} 47. b4
{[%clk 0:00:12.6]} 47... Nd3+ {[%clk 0:00:08.3]} 48. Kd5 {[%clk 0:00:12.2]}
48... Rxb4 {[%clk 0:00:06.8]} 49. Nc4 {[%clk 0:00:10.9]} 49... Nf4+ {[%clk
0:00:07.2]} 50. Kc5 {[%clk 0:00:10.1]} 50... Nd3+ {[%clk 0:00:07.6]} 51. Kd5
{[%clk 0:00:09.8]} 51... Rb5+ {[%clk 0:00:08.2]} 52. Ke6 {[%clk 0:00:09.8]}
52... Nf4+ {[%clk 0:00:08.5]} 53. Kf6 {[%clk 0:00:10.1]} 53... Ne2 {[%clk
0:00:02.5]} 54. Re1 {[%clk 0:00:07.2]} 54... Rc5 {[%clk 0:00:01.6]} 55. Nxe5
{[%clk 0:00:06]} 55... Nf4 {[%clk 0:00:02.5]} 56. Rb1+ {[%clk 0:00:05.1]} 56...
Kc7 {[%clk 0:00:02.8]} 57. Nf7 {[%clk 0:00:05.9]} 57... Nxg2 {[%clk 0:00:03.3]}
58. Nxg5 {[%clk 0:00:06.1]} 58... Ne3 {[%clk 0:00:04.2]} 59. Ne6+ {[%clk
0:00:06.1]} 59... Kd6 {[%clk 0:00:04]} 60. Nxc5 {[%clk 0:00:07]} 60... Kxc5
{[%clk 0:00:04.9]} 61. Rh1 {[%clk 0:00:07.5]} 61... h3 {[%clk 0:00:05.6]} 62.
Rxh3 {[%clk 0:00:07.3]} 62... Ng2 {[%clk 0:00:06.5]} 63. e5 {[%clk 0:00:07.3]}
63... Nf4 {[%clk 0:00:07.4]} 64. e6 {[%clk 0:00:07.6]} 64... Kd6 {[%clk
0:00:06.6]} 65. e7 {[%clk 0:00:08.1]} 65... Nd5+ {[%clk 0:00:07.3]} 66. Kf7
{[%clk 0:00:08.1]} 66... Nxe7 {[%clk 0:00:08.2]} 67. Rh6+ {[%clk 0:00:08.7]}
67... Kd7 {[%clk 0:00:08.8]} 68. Re6 {[%clk 0:00:09.6]} 68... Nd5 {[%clk
0:00:09.5]} 69. Re4 {[%clk 0:00:10]} 69... Nc7 {[%clk 0:00:09.2]} 70. f4 {[%clk
0:00:10.4]} 70... Nb5 {[%clk 0:00:08.7]} 71. f5 {[%clk 0:00:10.9]} 71... Kd6
{[%clk 0:00:08.5]} 72. Kg7 {[%clk 0:00:11.8]} 72... Nc7 {[%clk 0:00:09]} 73. f6
{[%clk 0:00:11.7]} 73... Kd5 {[%clk 0:00:09.9]} 74. Re7 {[%clk 0:00:11.9]} 74...
Ne6+ {[%clk 0:00:09.7]} 75. Rxe6 {[%clk 0:00:12.3]} 75... Kxe6 {[%clk
0:00:10.6]} 76. f7 {[%clk 0:00:13.2]} 76... Kf5 {[%clk 0:00:10.6]} 77. f8=Q+
{[%clk 0:00:14.1]} 77... Kg5 {[%clk 0:00:11.5]} 78. Qf6+ {[%clk 0:00:14]} 78...
Kh5 {[%clk 0:00:12.4]} 79. Qg6+ {[%clk 0:00:14.2]} 1-0

[Event "Late-Titled-Tuesday-Blitz-January-30-2024"]
[Site "Chess.com"]
[Date "2024.01.30"]
[Round "5"]
[White "topalovkramnik"]
[Black "krzyzan94"]
[Result "1-0"]
[WhiteElo "2474"]
[BlackElo "2762"]
[TimeControl "180+1"]
[EndTime "14:58:36 PST"]
[Termination "topalovkramnik won by checkmate"]

1. e4 {[%clk 0:03:00.9]} 1... e5 {[%clk 0:02:58.6]} 2. Nf3 {[%clk 0:02:56.6]}
2... Nc6 {[%clk 0:02:58.9]} 3. d4 {[%clk 0:02:57.2]} 3... exd4 {[%clk
0:02:58.3]} 4. c3 {[%clk 0:02:57.9]} 4... d5 {[%clk 0:02:57.6]} 5. exd5 {[%clk
0:02:57.8]} 5... Qxd5 {[%clk 0:02:58.5]} 6. cxd4 {[%clk 0:02:58.5]} 6... Bg4
{[%clk 0:02:57.3]} 7. Be2 {[%clk 0:02:58.8]} 7... Bb4+ {[%clk 0:02:57.4]} 8. Nc3
{[%clk 0:02:59.4]} 8... Bxf3 {[%clk 0:02:53.1]} 9. Bxf3 {[%clk 0:02:59.9]} 9...
Qc4 {[%clk 0:02:53]} 10. Bxc6+ {[%clk 0:03:00.4]} 10... bxc6 {[%clk 0:02:47.5]}
11. Qe2+ {[%clk 0:03:00.9]} 11... Qxe2+ {[%clk 0:02:47.4]} 12. Kxe2 {[%clk
0:03:01.8]} 12... Nf6 {[%clk 0:02:42.9]} 13. Be3 {[%clk 0:03:01.7]} 13... Bxc3
{[%clk 0:02:40.2]} 14. bxc3 {[%clk 0:03:02.6]} 14... Kd7 {[%clk 0:02:40.9]} 15.
Rhd1 {[%clk 0:03:02.5]} 15... Rab8 {[%clk 0:02:40.9]} 16. Rab1 {[%clk
0:02:59.9]} 16... Rb5 {[%clk 0:02:31.9]} 17. Kd3 {[%clk 0:02:13.7]} 17... Rhb8
{[%clk 0:02:30.6]} 18. Rxb5 {[%clk 0:02:12.6]} 18... Rxb5 {[%clk 0:02:27.9]} 19.
Kc2 {[%clk 0:02:07.6]} 19... Ra5 {[%clk 0:02:14.5]} 20. Kb3 {[%clk 0:02:04.6]}
20... Ng4 {[%clk 0:01:49.3]} 21. h3 {[%clk 0:02:00.9]} 21... Nxe3 {[%clk
0:01:49.4]} 22. fxe3 {[%clk 0:02:01.8]} 22... Rf5 {[%clk 0:01:49.9]} 23. Rd2
{[%clk 0:01:59.5]} 23... Rf1 {[%clk 0:01:50.1]} 24. Kc4 {[%clk 0:01:55.7]} 24...
Re1 {[%clk 0:01:46.3]} 25. Rf2 {[%clk 0:01:55.3]} 25... f6 {[%clk 0:01:44.8]}
26. Rf3 {[%clk 0:01:54.6]} 26... Re2 {[%clk 0:01:45]} 27. Rg3 {[%clk 0:01:53.9]}
27... g6 {[%clk 0:01:43]} 28. a4 {[%clk 0:01:51.2]} 28... f5 {[%clk 0:01:40.7]}
29. h4 {[%clk 0:01:48.8]} 29... Ke6 {[%clk 0:01:22]} 30. Kc5 {[%clk 0:01:46.3]}
30... Rc2 {[%clk 0:01:21.2]} 31. c4 {[%clk 0:01:45.6]} 31... Rc1 {[%clk
0:01:10.8]} 32. h5 {[%clk 0:01:43.7]} 32... Kf6 {[%clk 0:01:10.6]} 33. hxg6
{[%clk 0:01:42.2]} 33... hxg6 {[%clk 0:01:11.5]} 34. Rf3 {[%clk 0:01:37.5]}
34... Rc2 {[%clk 0:01:01.6]} 35. g4 {[%clk 0:01:32.3]} 35... Rc3 {[%clk
0:00:59.5]} 36. gxf5 {[%clk 0:01:31.1]} 36... gxf5 {[%clk 0:01:00.4]} 37. Kb4
{[%clk 0:01:30.1]} 37... Rc1 {[%clk 0:00:50.9]} 38. e4 {[%clk 0:01:28.7]} 38...
Ke6 {[%clk 0:00:37.9]} 39. Rxf5 {[%clk 0:01:28.4]} 39... Re1 {[%clk 0:00:31.2]}
40. Re5+ {[%clk 0:01:28]} 40... Kd6 {[%clk 0:00:31.5]} 41. Rh5 {[%clk
0:01:18.2]} 41... Rxe4 {[%clk 0:00:30.2]} 42. Rh6+ {[%clk 0:01:18.1]} 42... Kd7
{[%clk 0:00:29.8]} 43. Kc5 {[%clk 0:01:18.1]} 43... Rg4 {[%clk 0:00:27.8]} 44.
Rh7+ {[%clk 0:01:17.5]} 44... Kc8 {[%clk 0:00:28.2]} 45. Kxc6 {[%clk 0:01:13.4]}
45... Rg6+ {[%clk 0:00:28]} 46. Kc5 {[%clk 0:01:12.4]} 46... Kb7 {[%clk
0:00:27.7]} 47. d5 {[%clk 0:01:12.2]} 47... Ra6 {[%clk 0:00:24.1]} 48. Kb5
{[%clk 0:01:11.4]} 48... Rd6 {[%clk 0:00:22.9]} 49. Re7 {[%clk 0:01:08]} 49...
Rb6+ {[%clk 0:00:22.1]} 50. Kc5 {[%clk 0:01:07.9]} 50... Ra6 {[%clk 0:00:22.6]}
51. Kb5 {[%clk 0:01:08.1]} 51... Rb6+ {[%clk 0:00:22.6]} 52. Kc5 {[%clk
0:01:07.9]} 52... Ra6 {[%clk 0:00:19.9]} 53. Rg7 {[%clk 0:00:54.4]} 53... Rh6
{[%clk 0:00:07.4]} 54. a5 {[%clk 0:00:52.7]} 54... Rf6 {[%clk 0:00:07.3]} 55.
Kb5 {[%clk 0:00:52.1]} 55... a6+ {[%clk 0:00:06.8]} 56. Kc5 {[%clk 0:00:52.1]}
56... Rh6 {[%clk 0:00:07.5]} 57. Rd7 {[%clk 0:00:51]} 57... Kc8 {[%clk
0:00:07.4]} 58. Re7 {[%clk 0:00:51.5]} 58... Kb7 {[%clk 0:00:07.7]} 59. Re6
{[%clk 0:00:50.8]} 59... Rh1 {[%clk 0:00:06.9]} 60. Re3 {[%clk 0:00:34.5]} 60...
Rh6 {[%clk 0:00:04.5]} 61. Rb3+ {[%clk 0:00:30.9]} 61... Kc8 {[%clk 0:00:04.9]}
62. Rb2 {[%clk 0:00:30.4]} 62... Rg6 {[%clk 0:00:05.2]} 63. Re2 {[%clk
0:00:29.5]} 63... Kb7 {[%clk 0:00:04.6]} 64. Re6 {[%clk 0:00:26.3]} 64... Rg1
{[%clk 0:00:05.1]} 65. d6 {[%clk 0:00:26.8]} 65... Rg5+ {[%clk 0:00:05]} 66. Kb4
{[%clk 0:00:26.9]} 66... cxd6 {[%clk 0:00:03.7]} 67. Rxd6 {[%clk 0:00:27.8]}
67... Rh5 {[%clk 0:00:03.5]} 68. Rd5 {[%clk 0:00:26.2]} 68... Rh1 {[%clk
0:00:02.9]} 69. Kc5 {[%clk 0:00:26.6]} 69... Rc1 {[%clk 0:00:02.4]} 70. Rd7+
{[%clk 0:00:26.2]} 70... Kc8 {[%clk 0:00:02.8]} 71. Ra7 {[%clk 0:00:26.2]} 71...
Ra1 {[%clk 0:00:01.4]} 72. Rxa6 {[%clk 0:00:26.4]} 72... Kb7 {[%clk 0:00:02.3]}
73. Rb6+ {[%clk 0:00:26.8]} 73... Kc7 {[%clk 0:00:02.7]} 74. Rb5 {[%clk
0:00:24.6]} 74... Rd1 {[%clk 0:00:02.8]} 75. a6 {[%clk 0:00:21.4]} 75... Ra1
{[%clk 0:00:03]} 76. Rb7+ {[%clk 0:00:21.8]} 76... Kc8 {[%clk 0:00:03.4]} 77.
Rb6 {[%clk 0:00:22.3]} 77... Ra5+ {[%clk 0:00:03.3]} 78. Kc6 {[%clk 0:00:21.5]}
78... Rh5 {[%clk 0:00:03.1]} 79. c5 {[%clk 0:00:21.2]} 79... Rh6+ {[%clk
0:00:02.6]} 80. Kb5 {[%clk 0:00:21.6]} 80... Rh1 {[%clk 0:00:03.1]} 81. a7
{[%clk 0:00:21.1]} 81... Rb1+ {[%clk 0:00:02.7]} 82. Kc6 {[%clk 0:00:20.8]}
82... Ra1 {[%clk 0:00:01.4]} 83. Rb8# {[%clk 0:00:21]} 1-0